Cogmind - Beta 11.1 @@@ ROGUE MODE // 2022.10.31 @ 02:14:45 Player: Bar0ti Result: Destroyed by B-86 Titan with Railgun Performance ------------- Evolutions (6) 3000 Regions Visited (11) 2200 Robots Destroyed (49) 245 Value Destroyed (983) 983 Prototype IDs (29) 580 Alien Tech Used (0) 0 Bonus (814) 814 TOTAL SCORE: 7822 Bonus ------- High Alert Combat Kills 58 Follower Combat Kills 238 Entered Garrisons 200 Entered DSFs 500 Friendly Fire -182 Cogmind --------- Core Integrity 0/1150 Matter 207/300 Energy 47/100 System Corruption 0% Temperature Cool (0) Movement Core (50) Location -4/Garrison Parts ------- > --- POWER (2) -------- (None) > --- PROPULSION (6) --- (None) > --- UTILITY (9) ------ (None) > --- WEAPON (2) ------- (None) > --- INVENTORY (5) ---- Fission Core Advanced ECM Suite Field Recycling Unit (0) Force Rifle KE Penetrator Peak State ------------ > --- POWER ------------ Light Nuclear Core Fission Core > --- PROPULSION ------- Improved Gyrokinetic Inverter Improved Linear Gravjet Xenon Bombardment Thruster Cooled Cesium-ion Thruster Nuclear Pulse Array > --- UTILITY ---------- Advanced Weight Redist. System Advanced Sensor Array Improved Terrain Scanner Advanced Terrain Scan Processor Advanced Transmission Jammer Improved Reaction Control System Phase Shifter Improved Hacking Suite Improved System Shield > --- WEAPON ----------- KE Penetrator Improved Remote Datajack > --- INVENTORY -------- Advanced Transmission Jammer Advanced ECM Suite Field Recycling Unit Force Rifle Improved Remote Datajack [Rating: 100] Favorites ----------- Power Light Nuclear Core Engine Light Ion Engine Power Core Light Nuclear Core Propulsion Aerolev Unit Treads Advanced Treads Leg Improved Aluminum Leg Wheel Wheel Hover Unit Aerolev Unit Flight Unit Improved Cesium-ion Thruster Utility Experimental Sensor Array Device Experimental Sensor Array Storage Small Storage Unit Processor Improved Signal Interpreter Hackware System Shield Protection Layered Light Armor Plating Weapon Advanced Beam Rifle Energy Gun Advanced Beam Rifle Ballistic Gun Light Assault Rifle Ballistic Cannon Heavy Flak Cannon Launcher Mini Grenade Launcher Special Weapon Remote Datajack Special Melee Weapon Datajack Build | -11 -10 -10 -9 -8 -7 -7 -6 -5 -5 -4 -4 ------- Run | Scr Mat Min Mat Mat Fac Sto Fac Fac DSF Fac Gar Slots Evolved 12 | . . . 2 2 2 . 2 2 . 2 . Power 1 | . . . . . . . . 1 . . . Propulsion 4 | . . . 1 . . . 1 . . 2 . Utility 7 | . . . 1 2 2 . 1 1 . . . Weapon . | . . . . . . . . . . . . Parts Attached 147 | 6 7 1 10 32 20 32 27 4 3 4 1 Power 10 | 1 . 1 . 1 2 3 1 . . 1 . Engine 4 | 1 . 1 . . 1 1 . . . . . Core 6 | . . . . 1 1 2 1 . . 1 . Reactor . | . . . . . . . . . . . . Propulsion 42 | 2 4 . 4 12 3 7 6 1 1 2 . Treads 1 | . . . . 1 . . . . . . . Leg 1 | . . . . 1 . . . . . . . Wheel 2 | 2 . . . . . . . . . . . Hover 17 | . . . . 7 . 7 1 . . 2 . Flight 21 | . 4 . 4 3 3 . 5 1 1 . . Utility 47 | 1 2 . 2 6 11 8 12 1 2 1 1 Device 26 | . 1 . 1 1 6 7 8 1 . 1 . Storage 1 | 1 . . . . . . . . . . . Processor 8 | . 1 . 1 1 . . 4 . . . 1 Hackware 4 | . . . . 1 . 1 . . 2 . . Protection 8 | . . . . 3 5 . . . . . . Artifact . | . . . . . . . . . . . . Weapon 48 | 2 1 . 4 13 4 14 8 2 . . . Energy Gun 19 | . . . 2 6 2 6 3 . . . . Energy Cannon . | . . . . . . . . . . . . Ballistic Gun 12 | 2 1 . 1 1 . 2 4 1 . . . Ballistic Cannon 1 | . . . . . . . 1 . . . . Launcher 11 | . . . . 5 . 6 . . . . . Special Weapon 2 | . . . . . 1 . . 1 . . . Impact Weapon . | . . . . . . . . . . . . Slashing Weapon . | . . . . . . . . . . . . Piercing Weapon . | . . . . . . . . . . . . Special Melee Weapon 3 | . . . 1 1 1 . . . . . . Unidentified Prototypes 17 | . . . 3 3 1 8 2 . . . . Parts Lost 39 | . . . . 2 . 20 3 . 1 2 11 Power 2 | . . . . . . 1 . . . . 1 Propulsion 14 | . . . . 2 . 6 1 . 1 1 3 Utility 16 | . . . . . . 8 1 . . 1 6 Weapon 7 | . . . . . . 5 1 . . . 1 Highest Loss Streak 11 | . . . . 1 . 10 2 . 1 2 11 To Critical Strikes . | . . . . . . . . . . . . Average Slot Usage (%) 91 | . 96 100 97 94 98 92 76 82 90 88 61 Engine 3 | . 14 14 11 6 1 . . . . . . Core 4 | . . . . 2 5 6 2 5 5 10 6 Wheel 1 | . 22 . . . . . . . . . . Hover 8 | . . . . 10 14 7 7 . . 4 4 Flight 12 | . 5 28 33 11 8 13 11 23 21 15 10 Device 24 | . 13 14 21 20 25 29 20 35 35 30 19 Processor 8 | . 1 14 11 9 7 7 19 5 5 5 9 Hackware 5 | . . . . 9 7 4 . . 9 10 7 Protection 5 | . . . . 6 10 6 . . . . . Energy Gun 5 | . . . 8 8 6 5 5 2 . . . Ballistic Gun 4 | . 28 28 3 1 . 1 6 4 5 4 . Special Weapon 2 | . . . . . 5 3 . 4 5 5 3 Special Melee Weapon 1 | . . . 7 7 1 . . . . . . Naked Turns 6 | . . . . . . . . . . . 6 Heaviest Build 30 | 10 12 7 9 16 24 26 22 20 20 30 25 Greatest Support 35 | 20 20 8 14 24 26 35 31 20 34 34 25 Greatest Overweight (x) 4 | . . . . 4 3 1 . . . . . Average Overweight (x) . | . . . . . . . . . . . . Largest Inventory Capacity 8 | 8 8 5 5 5 5 5 5 5 5 5 5 Average Capacity 5 | 6 7 5 5 5 5 5 5 5 5 5 5 Most Carried 8 | 7 8 5 5 5 5 5 5 5 5 5 5 Average Carried 4 | 3 4 5 4 4 4 4 3 4 5 4 4 Final Capacity 8 | 8 5 5 5 5 5 5 5 5 5 5 5 Final Carried 5 | 4 5 5 5 5 5 3 4 5 5 5 5 Class Distribution -------------------- 55% | Mutant 13% | Sprinter 12% | Infiltrator-Sprinter 6% | Hacker-Scout 4% | Commander-Sprinter 3% | Scout Dominant Class ---------------- Mutant | -10/Materials Mutant | -10/Mines Mutant | -9/Materials Mutant | -8/Materials Mutant | -7/Factory Mutant | -7/Storage Mutant | -6/Factory Scout | -5/Factory Scout | -5/DSF Hacker-Scout | -4/Factory Hacker-Scout | -4/Garrison Resources | -11 -10 -10 -9 -8 -7 -7 -6 -5 -5 -4 -4 ----------- Run | Scr Mat Min Mat Mat Fac Sto Fac Fac DSF Fac Gar Matter Collected 2150 | 243 39 . 196 223 434 635 353 . . . 27 Remotely . | . . . . . . . . . . . . Salvage Created 1658 | . 103 . 161 256 164 754 220 . . . . Parts 96 | . 10 . 9 17 10 39 11 . . . . Haulers Intercepted 10 | . . . 2 2 2 4 . . . . . Recyclers Shooed 3 | . 1 1 . . . . 1 . . . . Parts Field Recycled . | . . . . . . . . . . . . Retrieved Matter . | . . . . . . . . . . . . Parts Self-Destructed . | . . . . . . . . . . . . Prevented . | . . . . . . . . . . . . Kills | -11 -10 -10 -9 -8 -7 -7 -6 -5 -5 -4 -4 ------- Run | Scr Mat Min Mat Mat Fac Sto Fac Fac DSF Fac Gar Combat Hostiles Destroyed 29 | . 7 . 1 8 1 10 2 . . . . Guns 15 | . 7 . 1 2 1 2 2 . . . . AOE 14 | . . . . 6 . 8 . . . . . Classes Destroyed 11 | . 1 . 2 2 3 3 . . . . . Worker 2 | . . . . . 1 1 . . . . . Builder 3 | . . . . 2 . 1 . . . . . Hauler 10 | . . . 2 2 2 4 . . . . . Recycler 3 | . . . . . . 2 1 . . . . Operator 1 | . . . . . 1 . . . . . . Drone 1 | . . . . . 1 . . . . . . Watcher 1 | . . . . . . 1 . . . . . Swarmer 16 | . 7 . . 4 . 3 2 . . . . Grunt 9 | . . . 1 1 . 7 . . . . . Sentry 3 | . . . . 3 . . . . . . . Programmer 1 | . . . . . . 1 . . . . . Best Kill Streak 6 | . 6 . 2 4 1 4 2 . . . . Combat Bots Only 6 | . 6 . 1 4 1 4 2 . . . . Max Kills in Single Turn 4 | . 1 . 1 4 1 2 1 . . . . Gunslinging . | . . . . . . . . . . . . Exploded 4 | . . . . 4 . 2 . . . . . Melee . | . . . . . . . . . . . . Uniques/NPCs Destroyed . | . . . . . . . . . . . . Combat | -11 -10 -10 -9 -8 -7 -7 -6 -5 -5 -4 -4 -------- Run | Scr Mat Min Mat Mat Fac Sto Fac Fac DSF Fac Gar Damage Taken 5194 | . 214 . 69 576 137 1961 374 . 82 131 1650 Core 1807 | . 74 . . 62 44 369 75 . 25 . 1158 Absorbed by Shields 59 | . . . . . . . . . . . 59 Regen/Repaired (Parts) 45 | . . . . . 45 . . . . . . Core Remaining (%) 83 | 100 . 70 100 88 . 41 91 . 97 . . Volleys Fired 195 | . 23 1 24 34 32 64 12 . 1 3 1 Largest 2 | . 2 2 1 1 1 2 2 . 1 1 1 Hottest 116 | . 40 40 40 61 61 116 80 . 7 33 7 Shots Fired 233 | . 46 2 24 34 33 73 16 . 1 3 1 Gun 182 | . 46 2 24 22 27 42 16 . . 3 . Cannon . | . . . . . . . . . . . . Launcher 34 | . . . . 12 . 22 . . . . . Special 17 | . . . . . 6 9 . . 1 . 1 Kinetic 88 | . 46 2 . 17 . 8 12 . . 3 . Thermal 54 | . . . . 1 27 26 . . . . . Explosive 32 | . . . . 12 . 20 . . . . . Electromagnetic 42 | . . . 24 4 . 10 4 . . . . Robot Hit Streak 14 | . 5 . 9 14 6 11 4 . 5 . . Robot Miss Streak 4 | . 4 . 4 2 3 3 2 . . 2 . Penetration Max . | . . . . . . . . . . . . Secondary Targets 1 | . . . . . . . 1 . . . . Max Gunslinging Chain 1 | . . . . . . . 1 . . . . Shots Hit Robots 149 | . 25 . 19 31 21 41 11 . 1 . . Core Hits 91 | . 12 1 7 22 5 38 6 . . . . Critical Kills . | . . . . . . . . . . . . Critical Parts Destroyed 1 | . 1 . . . . . . . . . . Critical Strikes 4 | . 1 . . . 1 2 . . . . . Burn 3 | . . . . . 1 2 . . . . . Destroy 1 | . 1 . . . . . . . . . . Melee Attacks 9 | . . . 5 3 1 . . . . . . Impact . | . . . . . . . . . . . . Slashing . | . . . . . . . . . . . . Piercing . | . . . . . . . . . . . . Sneak Attacks 8 | . . . 4 3 1 . . . . . . Combat Hostiles . | . . . . . . . . . . . . Follow-up Attacks . | . . . . . . . . . . . . Damage Inflicted 4108 | . 214 8 259 1146 295 1986 200 . . . . Guns 1772 | . 214 8 195 301 295 566 193 . . . . Cannons . | . . . . . . . . . . . . Explosions 2273 | . . . 64 816 . 1393 . . . . . Melee . | . . . . . . . . . . . . Ramming 63 | . . . . 29 . 27 7 . . . . Kinetic 735 | . 214 8 . 227 . 150 136 . . . . Thermal 644 | . . . 64 20 295 265 . . . . . Explosive 2120 | . . . . 816 . 1304 . . . . . Electromagnetic 546 | . . . 195 54 . 240 57 . . . . Impact . | . . . . . . . . . . . . Slashing . | . . . . . . . . . . . . Piercing . | . . . . . . . . . . . . Highest Corruption 17 | . . . . . 2 17 4 . . . . Average Corruption 6 | . . . . . 1 7 2 . . . . Corruption Purged . | . . . . . . . . . . . . Corruption Blocked . | . . . . . . . . . . . . Effects 31 | . . . . . 1 26 4 . . . . Message Errors 5 | . . . . . . 2 3 . . . . Matter Fused 9 | . . . . . . 8 1 . . . . Heat Flow Errors 4 | . . . . . . 4 . . . . . Energy Discharges 2 | . . . . . . 2 . . . . . Parts Rejected 1 | . . . . . . 1 . . . . . Data Loss (minor) 2 | . . . . . . 2 . . . . . Data Loss (major) 2 | . . . . . . 2 . . . . . Misfires 1 | . . . . . 1 . . . . . . Alerts 1 | . . . . . . 1 . . . . . Misdirections 1 | . . . . . . 1 . . . . . Weapon Failures 3 | . . . . . . 3 . . . . . Overload Shots . | . . . . . . . . . . . . Overflow Damage 71 | . . . 4 17 . 50 . . . . . Projectiles . | . . . . . . . . . . . . Explosions 71 | . . . 4 17 . 50 . . . . . Melee . | . . . . . . . . . . . . Knockbacks 1 | . . . . . . 1 . . . . . Impact 1 | . . . . . . 1 . . . . . Kinetic . | . . . . . . . . . . . . Secondary . | . . . . . . . . . . . . Self-Inflicted Damage 440 | . . . . 195 . 242 3 . . . . Shots 14 | . . . . 8 . 6 . . . . . Rammed 6 | . . . . 1 . 3 2 . . . . Targets Rammed 6 | . . . . 1 . 3 2 . . . . Kicked . | . . . . . . . . . . . . Crushed . | . . . . . . . . . . . . Highest Temperature 393 | . . 4 9 31 393 264 12 . . . . Average Temperature 81 | . . 3 5 11 150 59 7 . . . . Received Heat Transfer 519 | . . . 21 126 . 351 . . . 12 9 Effects 2 | . . . . . 2 . . . . . . Interference 2 | . . . . . 2 . . . . . . Siege Activations . | . . . . . . . . . . . . Robots Corrupted 1 | . . . 1 . . . . . . . . Combat Hostiles . | . . . . . . . . . . . . Parts Fried 2 | . . . 1 1 . . . . . . . Impact Corruptions . | . . . . . . . . . . . . Robots Melted . | . . . . . . . . . . . . Combat Hostiles . | . . . . . . . . . . . . Parts Melted 4 | . . . . . 3 1 . . . . . Heat Transferred 1358 | . . . 100 37 592 629 . . . . . Parts Sabotaged . | . . . . . . . . . . . . Parts Stolen . | . . . . . . . . . . . . Parts Stripped . | . . . . . . . . . . . . Power Chain Reactions 1 | . . . 1 . . . . . . . . Missiles Intercepted . | . . . . . . . . . . . . Alert | -11 -10 -10 -9 -8 -7 -7 -6 -5 -5 -4 -4 ------- Run | Scr Mat Min Mat Mat Fac Sto Fac Fac DSF Fac Gar Peak Influence 551 | . 159 61 300 515 264 551 228 18 16 132 146 Initial 201 | . . 61 23 126 201 37 188 16 16 2 86 Average 167 | . 58 61 126 294 188 160 184 17 12 41 96 Maximum Alert Level 2 | . . . 1 2 1 2 1 . . . . Low Security (%) 62 | 100 100 100 68 41 40 68 62 100 100 100 100 Level 1 29 | . . . 31 32 59 15 37 . . . . Level 2 7 | . . . . 26 . 15 . . . . . Level 3 . | . . . . . . . . . . . . Level 4 . | . . . . . . . . . . . . Level 5 . | . . . . . . . . . . . . High Security . | . . . . . . . . . . . . Max Security . | . . . . . . . . . . . . Squads Dispatched 22 | . 1 . 2 3 2 9 1 . 1 3 . Investigation 6 | . . . . 1 1 2 . . . 2 . Extermination 4 | . . . . . 1 2 1 . . . . Reinforcement 12 | . 1 . 2 2 . 5 . . 1 1 . Assault . | . . . . . . . . . . . . Garrison . | . . . . . . . . . . . . Intercept . | . . . . . . . . . . . . Searches Triggered . | . . . . . . . . . . . . Construction Impeded 2 | . . . . 1 . 1 . . . . . Haulers Reinforced 3 | . . . . . . 3 . . . . . Active Scanning Responses . | . . . . . . . . . . . . Cargo Convoy Interrupts . | . . . . . . . . . . . . Stealth | -11 -10 -10 -9 -8 -7 -7 -6 -5 -5 -4 -4 --------- Run | Scr Mat Min Mat Mat Fac Sto Fac Fac DSF Fac Gar Distress Signals 6 | . 1 . 1 1 . 3 . . . . . Communications Jammed 54 | . . . . . . 54 . . . . . Distress Signals 54 | . . . . . . 54 . . . . . Times Spotted 137 | . 10 . 16 25 9 37 5 . 6 9 20 Peak Tracking Total 15 | . 3 . 5 7 3 8 3 . 6 5 15 Tactical Retreats 16 | . . . 1 3 1 4 2 . . 3 2 Traps | -11 -10 -10 -9 -8 -7 -7 -6 -5 -5 -4 -4 ------- Run | Scr Mat Min Mat Mat Fac Sto Fac Fac DSF Fac Gar Traps Triggered 6 | . . . . . 1 1 1 . 1 . 2 Indirectly . | . . . . . . . . . . . . Trap Hack Attempts . | . . . . . . . . . . . . Triggered . | . . . . . . . . . . . . Disarmed . | . . . . . . . . . . . . Reprogrammed 1 | . . . . 1 . . . . . . . Reused . | . . . . . . . . . . . . Traps Extracted . | . . . . . . . . . . . . Installed . | . . . . . . . . . . . . Triggered . | . . . . . . . . . . . . Machines | -11 -10 -10 -9 -8 -7 -7 -6 -5 -5 -4 -4 ---------- Run | Scr Mat Min Mat Mat Fac Sto Fac Fac DSF Fac Gar Machines Disabled 8 | . . . . 2 . 6 . . . . . Max in Single Turn 1 | . . . . 1 . 1 . . . . . Machines Sabotaged . | . . . . . . . . . . . . Garrisons Compromised . | . . . . . . . . . . . . Overloaded Fab Kills . | . . . . . . . . . . . . Hacking | -11 -10 -10 -9 -8 -7 -7 -6 -5 -5 -4 -4 --------- Run | Scr Mat Min Mat Mat Fac Sto Fac Fac DSF Fac Gar Machines Accessed 51 | . 3 . 2 8 15 14 2 2 . 5 . Terminals 33 | . 3 . 2 6 7 13 . 1 . 1 . Fabricators 6 | . . . . . 3 . 1 . . 2 . Repair Stations 1 | . . . . . 1 . . . . . . Recycling Units 4 | . . . . 1 1 . 1 . . 1 . Scanalyzers 4 | . . . . 1 2 . . 1 . . . Garrison Access 3 | . . . . . 1 1 . . . 1 . Total Hacks 153 | . 9 . 5 32 55 27 5 9 . 11 . Successful 94 | . 5 . 3 21 31 15 2 9 . 8 . Failed 58 | . 4 . 2 11 23 12 3 . . 3 . Catastrophic 7 | . . . . 2 1 4 . . . . . Database Lockouts 1 | . . . . . 1 . . . . . . Manual . | . . . . . . . . . . . . Terminals 94 | . 9 . 5 17 35 25 . 1 . 2 . Fabricators 12 | . . . . . 5 . 2 . . 5 . Repair Stations 4 | . . . . . 4 . . . . . . Recycling Units 10 | . . . . 4 1 . 3 . . 2 . Scanalyzers 26 | . . . . 11 7 . . 8 . . . Garrison Access 7 | . . . . . 3 2 . . . 2 . Terminal Hacks 56 | . 5 . 3 9 22 15 . 1 . 1 . Record 13 | . 1 . . 1 9 2 . . . . . Part Schematic 1 | . . . . . 1 . . . . . . Robot Analysis 1 | . . . . . 1 . . . . . . Prototype ID Bank 7 | . 1 . . 1 3 2 . . . . . Open Door 5 | . . . . . . 5 . . . . . Open DSF 2 | . . . . . 1 . . 1 . . . Branch Access Points 1 | . . . . 1 . . . . . . . Emergency Access Points 1 | . . . . . 1 . . . . . . Terminal Index 1 | . . . . . 1 . . . . . . Alert Level 1 | . . . . 1 . . . . . . . Unreport Threat 1 | . 1 . . . . . . . . . . Locate Traps 7 | . 2 . . 1 2 1 . . . 1 . Reprogram Traps 1 | . . . . 1 . . . . . . . Dispatch Records 2 | . . . . . 1 1 . . . . . Maintenance Status 2 | . . . 1 . . 1 . . . . . Security Status 1 | . . . 1 . . . . . . . . Investigation Status 1 | . . . . 1 . . . . . . . Recall Investigation 2 | . . . . 1 . 1 . . . . . Recall Reinforcements 1 | . . . 1 . . . . . . . . Hauler Manifests 1 | . . . . 1 . . . . . . . Registered Components 1 | . . . . . . 1 . . . . . Zone Layout 3 | . . . . . 2 1 . . . . . Fabricator Hacks 7 | . . . . . 1 . 1 . . 5 . Network Status 2 | . . . . . . . 1 . . 1 . Load Schematic 2 | . . . . . . . . . . 2 . Build 3 | . . . . . 1 . . . . 2 . Repair Station Hacks 3 | . . . . . 3 . . . . . . Scan Component 2 | . . . . . 2 . . . . . . Repair 1 | . . . . . 1 . . . . . . Recycling Unit Hacks 5 | . . . . 3 1 . 1 . . . . Report Inventory 1 | . . . . 1 . . . . . . . Retrieve Matter 1 | . . . . 1 . . . . . . . Retrieve Components 3 | . . . . 1 1 . 1 . . . . Scanalyzer 20 | . . . . 9 3 . . 8 . . . Insert Component 10 | . . . . 4 2 . . 4 . . . Analyze 10 | . . . . 5 1 . . 4 . . . Garrison Access Hacks 3 | . . . . . 1 . . . . 2 . Unlock Access 1 | . . . . . . . . . . 1 . Coupler Status 2 | . . . . . 1 . . . . 1 . Unauthorized Hacks . | . . . . . . . . . . . . Terminals . | . . . . . . . . . . . . Fabricators . | . . . . . . . . . . . . Repair Stations . | . . . . . . . . . . . . Recycling Units . | . . . . . . . . . . . . Scanalyzers . | . . . . . . . . . . . . Garrison Access . | . . . . . . . . . . . . Data Cores Recovered 2 | . . . 1 . 1 . . . . . . Used 1 | . . . . . 1 . . . . . . Hacking Detections 36 | . 3 . 2 4 11 9 2 . . 5 . Full Trace Events 6 | . . . . 1 1 2 . . . 2 . Feedback Events . | . . . . . . . . . . . . Feedback Blocked . | . . . . . . . . . . . . Robot Schematics Acquired . | . . . . . . . . . . . . Robots Built . | . . . . . . . . . . . . Authchips . | . . . . . . . . . . . . Time . | . . . . . . . . . . . . Total Robot Build Rating . | . . . . . . . . . . . . Part Schematics Acquired 10 | . . . . 4 2 . . 4 . . . Parts Built 3 | . . . . . 2 . . . . 1 . Authchips . | . . . . . . . . . . . . Time 285 | . . . . . 117 . . . . 168 . Total Part Build Rating 19 | . . . . . 14 . . . . 5 . Parts Repaired 1 | . . . . . 1 . . . . . . Time 53 | . . . . . 53 . . . . . . Parts Recycled . | . . . . . . . . . . . . Recycled Matter . | . . . . . . . . . . . . Retrieved Matter . | . . . . . . . . . . . . Retrieved Components 12 | . . . . 3 8 . 1 . . . . Parts Scanalyzed 10 | . . . . 4 2 . . 4 . . . Part Schematics Acquired 9 | . . . . 4 1 . . 4 . . . Parts Damaged . | . . . . . . . . . . . . Bothacking | -11 -10 -10 -9 -8 -7 -7 -6 -5 -5 -4 -4 ------------ Run | Scr Mat Min Mat Mat Fac Sto Fac Fac DSF Fac Gar Used RIF Installer . | . . . . . . . . . . . . Robots Hacked 15 | . . . 2 2 6 5 . . . . . Non-combat 15 | . . . 2 2 6 5 . . . . . Combat . | . . . . . . . . . . . . Robot Hacks Applied 16 | . . . 2 2 7 5 . . . . . parse_system 2 | . . . . . 1 1 . . . . . no_distress 12 | . . . 2 2 4 4 . . . . . find_chute 1 | . . . . . 1 . . . . . . find_fabricator 1 | . . . . . 1 . . . . . . Relay Couplers Released . | . . . . . . . . . . . . Fabnet Peak Effective % . | . . . . . . . . . . . . Robots Rewired 3 | . . . . . . 3 . . . . . Allies Hacked . | . . . . . . . . . . . . Hacks Repelled 1 | . . . . . . 1 . . . . . Allies | -11 -10 -10 -9 -8 -7 -7 -6 -5 -5 -4 -4 -------- Run | Scr Mat Min Mat Mat Fac Sto Fac Fac DSF Fac Gar Total Allies 12 | . . 2 . . . 10 . . . . . Largest Group 10 | . . 2 2 . . 10 . . . . . Highest-Rated Group 173 | . . 46 46 . . 173 . . . . . Highest-Rated Ally 31 | . . 31 31 . . 29 . . . . . Total Orders 1 | . . . . . . 1 . . . . . EXPLORE 1 | . . . . . . 1 . . . . . Ally Attacks 80 | . . . 13 . . 67 . . . . . Total Damage 1214 | . . . 273 . . 941 . . . . . Kills 12 | . . . 5 . . 7 . . . . . Allies Corrupted . | . . . . . . . . . . . . Allies Melted . | . . . . . . . . . . . . Intel | -11 -10 -10 -9 -8 -7 -7 -6 -5 -5 -4 -4 ------- Run | Scr Mat Min Mat Mat Fac Sto Fac Fac DSF Fac Gar Robot Analysis Total 1 | . . . . . 1 . . . . . . Derelict Logs Recovered 1 | . . 1 . . . . . . . . . Drone Launches 14 | . . . . . . 14 . . . . . Drone Recoveries . | . . . . . . . . . . . . Exploration | -11 -10 -10 -9 -8 -7 -7 -6 -5 -5 -4 -4 ------------- Run | Scr Mat Min Mat Mat Fac Sto Fac Fac DSF Fac Gar Turns Passed 3703 | 45 187 98 211 585 910 834 438 94 30 170 101 Spaces Moved 5379 | 42 173 225 341 727 1385 927 702 193 77 388 199 Core 77 | 12 . . . 2 . 8 . . . . 55 Treads 11 | . . . . 11 . . . . . . . Legs . | . . . . . . . . . . . . Wheels 129 | 30 99 . . . . . . . . . . Hover 1826 | . . . . 363 806 356 301 . . . . Flight 3336 | . 74 225 341 351 579 563 401 193 77 388 144 Fastest Speed 27 | 50 37 37 32 32 29 29 27 27 27 32 32 Average Speed 39 | 71 61 37 33 46 37 42 40 27 28 32 37 Slowest Speed 250 | 80 80 37 34 250 230 110 60 27 32 32 50 Overloaded Moves 52 | . . . . . . 52 . . . . . Propulsion Burnouts 2 | . . . . . . 2 . . . . . Robots Hopped 47 | . . 3 14 4 9 4 12 1 . . . Cave-ins Triggered 1 | . . . . . . 1 . . . . . Exploration Rate (%) 38 | 3 40 61 38 59 30 93 13 5 72 8 34 Regions Visited 11 Branch Regions 2 Pre-discovered Areas 1 | . . 1 . . . . . . . . . Known Exits Taken 6 | . . . 1 1 1 1 . 1 . 1 . Unknown Exits Taken 4 | 1 1 1 . . . . 1 . . . . Scrap Searched . | . . . . . . . . . . . . Spaces Dug 15 | . . . . . . 15 . . . . . Terrain Destroyed 281 | . . . 6 52 . 222 . . . 1 . Melee . | . . . . . . . . . . . . Projectile 1 | . . . . . . . . . . 1 . AOE 280 | . . . 6 52 . 222 . . . . . Terrain Rammed . | . . . . . . . . . . . . Walls Destroyed . | . . . . . . . . . . . . Machines Disabled . | . . . . . . . . . . . . Actions | -11 -10 -10 -9 -8 -7 -7 -6 -5 -5 -4 -4 --------- Run | Scr Mat Min Mat Mat Fac Sto Fac Fac DSF Fac Gar Total 6669 | 55 219 234 396 937 1740 1280 833 234 83 432 226 Wait 792 | . . 9 18 111 289 231 73 33 . 27 1 Move 5278 | 41 172 218 315 718 1366 917 679 190 76 388 198 Hop 42 | . . 3 11 4 9 4 10 1 . . . Pick Up 70 | 8 8 1 6 9 7 6 16 3 1 5 . Fast Attach 70 | 2 2 . 4 19 13 18 8 . 3 1 . Attach 48 | 4 5 . 4 4 1 6 17 3 . 3 1 Detach 10 | . 1 . . 1 . 1 4 1 . 1 1 Swap 29 | . . 1 2 9 6 8 2 1 . . . Drop 88 | . 8 1 7 24 16 14 10 2 2 4 . Fire 195 | . 23 1 24 34 32 64 12 . 1 3 1 Melee 9 | . . . 5 3 1 . . . . . . Ram 6 | . . . . 1 . 3 2 . . . . Kick . | . . . . . . . . . . . . Crush . | . . . . . . . . . . . . Escape Stasis 25 | . . . . . . 1 . . . . 24 Rewire . | . . . . . . . . . . . . Trap . | . . . . . . . . . . . . Miscellaneous 7 | . . . . . . 7 . . . . . Route ------- -11/Scrapyard -10/Materials -10/Mines -9/Materials (discovered 2 exits: *Mat x2) -8/Materials -7/Factory (discovered 4 exits: *Fac x2 / *Sto / *Low) -7/Storage -6/Factory -5/Factory -5/DSF -4/Factory -4/Garrison (discovered 1 exit: [*Fac]) History --------- Turn | Location | Event 4 | -11/Scrapyard | Discovered new exit (range 14) 46 | -11/Scrapyard | Entered Materials 203 | -10/Materials | Discovered new exit (range 16) 233 | -10/Materials | Entered Mines 285 | -10/Mines | Found a damaged Exp. Sensor Array with a note attached 288 | -10/Mines | Found Prototype Device 309 | -10/Mines | Build established: Mutant 316 | -10/Mines | Discovered new exit (range 7) 331 | -10/Mines | Entered Materials 331 | -9/Materials | Accompanied by 2 allies 331 | -9/Materials | Evolved 2 slots: Propulsion x1, Utility x1 336 | -9/Materials | Led the pair of lost Derelicts to an unsafe place 343 | -9/Materials | Identified Exp. Sensor Array 445 | -9/Materials | Discovered new exit (range 16) 541 | -9/Materials | Discovered new exit (range 6) 542 | -9/Materials | Identified exit to Materials 542 | -9/Materials | Entered another Materials area 542 | -8/Materials | Evolved 2 slots: Utility x2 1051 | -8/Materials | Discovered new exit (range 15) 1077 | -8/Materials | Identified exit to Factory 1127 | -8/Materials | Entered Factory 1127 | -7/Factory | Evolved 2 slots: Utility x2 1247 | -7/Factory | Central database locked down 1379 | -7/Factory | Repaired Broken Lgt. Nuclear Core 1398 | -7/Factory | Fabricated Graphene Brace? 1484 | -7/Factory | Discovered new exit (range 14) 1489 | -7/Factory | Identified exit to Factory 1757 | -7/Factory | Discovered new exit (range 15) 1775 | -7/Factory | Discovered exit to Factory (range 16) 1775 | -7/Factory | Identified exit to Storage 1822 | -7/Factory | Discovered new exit (range 8) 1823 | -7/Factory | Identified exit to Lower Caves 1967 | -7/Factory | Build established: Infiltrator-Sprinter 2037 | -7/Factory | Entered Storage 2206 | -7/Storage | Assisted by bots powering up and referring to "LRC-V3" 2495 | -7/Storage | Crushed by falling debris 2496 | -7/Storage | System corruption reached 10% 2553 | -7/Storage | Lost 5 parts (2n2u1w) 2687 | -7/Storage | Found Prototype Launcher 2687 | -7/Storage | Identified Gui. Missile Launcher 2841 | -7/Storage | Build established: Mutant 2862 | -7/Storage | Discovered exit to Factory (range 12) 2863 | -7/Storage | Core integrity fell below 50% 2871 | -7/Storage | Entered Factory 2871 | -6/Factory | Evolved 2 slots: Propulsion x1, Utility x1 2899 | -6/Factory | Lost 10 parts (1p2n4u3w) 3101 | -6/Factory | Discovered new exit (range 5) 3240 | -6/Factory | Spotted B-75 Beast 3309 | -6/Factory | Entered another Factory area 3309 | -5/Factory | Evolved 2 slots: Power x1, Utility x1 3403 | -5/Factory | Identified exit to DSF 3403 | -5/Factory | Entered DSF 3426 | -5/DSF | Additional patrols routed to DSF 3426 | -5/DSF | Discovered new exit (range 15) 3433 | -5/DSF | Entered Factory 3433 | -4/Factory | Evolved 2 slots: Propulsion x2 3576 | -4/Factory | Fabricated Enh. Optical Array (x1) 3603 | -4/Factory | Identified exit to Garrison 3603 | -4/Factory | Entered Garrison 3635 | -4/Garrison | Spotted B-86 Titan 3650 | -4/Garrison | Triggered checkpoint 3658 | -4/Garrison | Triggered checkpoint 3658 | -4/Garrison | Triggered checkpoint 3674 | -4/Garrison | Discovered new exit (range 15) 3680 | -4/Garrison | Attempted to access garrison exit controls, blocked by remote lockdown 3690 | -4/Garrison | Core integrity fell below 50% 3697 | -4/Garrison | Core integrity fell below 20% 3704 | -4/Garrison | Destroyed by B-86 Titan with Railgun Last Messages --------------- 03685_ Imp. Hacking Suite destroyed. 03685_ S-27 Virus destroyed. 03685_ Penetrated by Slug. 03687_ Acquired 22 matter. 03688_ Penetrated by Slug. 03688_ Slug penetrates Wall. 03688_ Penetrated by Slug. 03688_ C-35 Carver destroyed. 03688_ Slug penetrates Wall. 03689_ Imp. Gyrokinetic Inverter severed. 03691_ Penetrated by Slug. 03691_ Slug penetrates Wall. 03691_ Penetrated by Slug. 03691_ Slug penetrates Wall. 03692_ Adv. Terrain Scan Processor severed. 03694_ Adv. Transmission Jammer severed. 03695_ Penetrated by Slug. 03695_ Slug penetrates Wall. 03698_ Enh. Optical Array severed. 03701_ Penetrated by Slug. Map ----- +----------------------------------------------------+ | ???????????????????????????????########### ###### | | ???????????????????????????????# | | ???????????????????????????????# | | ???????????????????????????????# | | ???????????????????????????????# ############### | | ???????????????????????????????# #?????????????? | | ???????????????????????????????# #?????????????? | | ????????????????????#??????????# #?????????????? | | ????????????????????# ?????????# #?????????????? | | ????????????????????# ????????# #?????????????? | | ????????????????????# ???????# #?????????????? | | ????????????????????# ##""""## #?????????????? | | ????????????????????# #?????????????? | | ????????????????????# #?????????????? | | ????????????????????# #?????????????? | | ????????????????????# ## ;# #?????????????? | | ??????????????????### ## ## ###???????????? | | ??????????????????# #???????????? | | ??????????????????# #???????????? | | ??????????????????# BB #???????????? | | ??????????????????# gBB #???????????? | | ??????????????????### ## ;; ###???????????? | | ???????????########## ## ## %;###########??? | | ???????????# g b c c #??? | | ???????????# g /g #??? | | ???????????????###### @ #??? | | ????????????????????# ##""""##;#"######## #??? | | ????????????????????# ???????# ##??????#^ #??? | | ????????????????????# ????????# #???????# ! #??? | | ????????????????????# ?????????# #???????# #??? | | ????????????????????#??????????# #???????# #??? | | ???????????????????????????????# #??#????# #??? | | ???????????????????????????????# #### #### ##"" | | ???????????????????????????????# + ^ | | ???????????????????????????????# + | | ????????????????????????????????########### #### | | ??????????????????????????????????????????# #??? | | ??????????????????????????????????????????# = #??? | | ??????????????????????????????????????????# #??? | | ??????????????????????????????????????????# #??? | | ??????????????????????????????????????????# #??? | | ??????????????????????????????????????????# *#??? | | ??????????????????????????????????????????# #??? | | ??????????????????????????????????????????# [#??? | | ??????????????????????????????????????????# %#??? | | ??????????????????????????????????????????# !#??? | | ??????????????????????????????????????????# #??? | | ??????????????????????????????????????????# #??? | | ??????????????????????????????????????????# #??? | | ??????????????????????????????????????????# #??? | +----------------------------------------------------+ Best States ------------- Heat Dissipation 43 Energy Generation 27 Energy Capacity 370 Matter Stores 300 Matter Capacity 300 Sight Range 22 Robot Scan Range 20 Terrain Scan Range 16 Terrain Scan Density 210 ECM Strength 2 Jamming Range 16 Additional Mass Support 9 Base Temperature (-) 100 Armor Coverage 300 Phase Shifting 5 Evasion (%) 78 Targeting Accuracy 5 Recoil Reduction 1 Salvage Targeting 6 Offensive Hacking 12 Defensive Hacking 12 Item Schematics ----------------- Cryofiber Web | -8/Materials | Scanalyzed System Shield | -8/Materials | Scanalyzed Sml. Storage Unit | -8/Materials | Scanalyzed Hvy. EM Shotgun | -8/Materials | Scanalyzed Graphene Brace | -7/Factory | Scanalyzed Enh. Optical Array | -7/Factory | Hacked Phase Shifter | -5/Factory | Scanalyzed Imp. Remote Datajack | -5/Factory | Scanalyzed Field Recycling Unit | -5/Factory | Scanalyzed Adv. ECM Suite | -5/Factory | Scanalyzed Robot Schematics ------------------ None Fabricated ------------ Graphene Brace | x2 | -7/Factory | Preloaded Enh. Optical Array | x1 | -4/Factory Alien Tech Used ----------------- None Achievements -------------- A New Friend Cya! Dodgeball, But With Guns Dynamic Key Challenges ------------ None Game ------ Seed FlakPowerFlail Manual? 0 Play Time 03:14:13 Cumulative 21.1 hours Start 2022.10.30 @ 20:53:42 End 2022.10.31 @ 02:14:45 Sessions 2 Manual Loads 0 Difficulty Rogue Special Mode None Game No. 7 Rogue 7 Adventurer 0 Explorer 0 Win Type - Total 0 Types 0/0/0/0/0/0/0/0/0 Lore% 16 Gallery% 33 Achievement% 30 Wizard Run 0 Options --------- ASCII 0 Keyboard 0 Movement Mouse Keybinds 0 Fullscreen 1 Font 18/SmallcapsGlow Map View 76x50 Tactical HUD 1 Map Filters NONE Filters NONE Steam 1 RUN: 206cc2d3-e92f-4056-88d0-437677ab3957